bitfinex-derivatives/quotes_SOLF0:USTF0_20251006
["timestamp","ask_amount","ask_price","bid_price","bid_amount"]
[1759759391669,109.42,235.19,235.14,3.52985225]
[1759759391873,109.42,235.19,235.15,14.20212855]
[1759759392070,109.42,235.19,235.16,3.4122763]
[1759759392277,109.42,235.19,235.17,3.4122763]
[1759759392475,109.42,235.19,235.18,3.4122763]
[1759759393580,109.42,235.19,235.18,10.6722763]
[1759759393874,109.42,235.24,235.18,3.4122763]
[1759759394179,109.42,235.24,235.19,3.4122763]
[1759759394378,109.42,235.24,235.2,3.4122763]
[1759759394574,109.42,235.24,235.21,3.4122763]
[1759759394781,109.42,235.24,235.22,3.4122763]
[1759759394979,109.42,235.24,235.17,3.52985225]
[1759759395174,109.42,235.24,235.18,3.40750417]
[1759759395370,113.2443,235.24,235.19,3.40750417]
[1759759395576,109.42,235.24,235.2,3.40750417]
[1759759395776,109.42,235.24,235.21,3.40750417]
[1759759396082,109.42,235.24,235.16,3.52985225]
[1759759396381,109.42,235.24,235.17,6.93675512]
[1759759396581,109.42,235.24,235.18,3.40690287]
[1759759396879,109.42,235.24,235.19,3.40690287]
[1759759397179,109.42,235.24,235.2,3.40690287]
[1759759397375,109.42,235.24,235.21,3.40690287]
[1759759397679,109.42,235.24,235.16,3.52985225]
[1759759397875,109.42,235.24,235.17,3.40394803]
[1759759398082,109.42,235.24,235.18,3.40394803]
[1759759398275,109.42,235.24,235.19,10.68394803]
[1759759398474,109.42,235.24,235.2,3.40394803]
[1759759398676,109.42,235.24,235.21,3.40394803]
[1759759398882,3.8245,235.23,235.16,3.52985225]
[1759759399075,111.36340324,235.24,235.17,3.40298308]
[1759759399377,3.8248,235.21,235.18,3.40298308]
[1759759399575,111.36340324,235.24,235.19,3.40298308]
[1759759399772,111.36340324,235.24,235.2,3.40298308]
[1759759399976,111.36340324,235.24,235.21,3.40298308]
[1759759400275,109.42,235.24,235.17,7.28]
[1759759400476,109.42,235.24,235.18,3.40187645]
[1759759400674,310.42000043,235.33,235.2,7.28]
[1759759400873,59.4356,235.46,235.26,7.28]
[1759759401073,109.38,235.45,235.27,3.39937064]
[1759759401277,0.73966226,235.43,235.28,5.34277388]
[1759759401478,109.38,235.45,235.3,7.28]
[1759759401670,1.94340324,235.43,235.32,1.94340324]
[1759759401872,1.94340324,235.43,235.33,3.39937064]
[1759759402076,1.94340324,235.43,235.32,1.94340324]
[1759759402276,109.38,235.44,235.33,3.45353841]
[1759759402477,111.32340324,235.44,235.34,3.45353841]
[1759759402677,3.8213,235.43,235.35,3.45353841]
[1759759402878,1.94340324,235.41,235.3,7.28]
[1759759403079,59.4498,235.4,235.31,3.4535528]
[1759759403280,109.38,235.39,235.32,3.4535528]
[1759759403480,109.38,235.39,235.3,7.28]
[1759759403674,3.8223,235.37,235.31,3.45220257]
[1759759403879,3.8223,235.37,235.32,3.45220257]
[1759759404076,3.8223,235.37,235.3,7.28]
[1759759404290,109.38,235.39,235.31,3.45061513]
[1759759404479,109.38,235.39,235.3,7.28]
[1759759404680,109.38,235.39,235.31,3.45094029]
[1759759404887,109.38,235.39,235.3,7.28]
[1759759405075,109.38,235.39,235.31,3.45087983]
[1759759405274,109.38,235.39,235.3,7.28]
[1759759405275,3.8223,235.37,235.3,7.28]
[1759759405588,3.8223,235.37,235.31,3.44931257]
[1759759405786,3.8226,235.35,235.26,3.52985225]
[1759759405985,109.38,235.39,235.27,3.44938642]
[1759759406193,109.38,235.39,235.28,3.44938642]
[1759759406489,109.38,235.39,235.29,10.72938642]
[1759759406693,109.38,235.39,235.3,3.44938642]
[1759759406988,109.38,235.39,235.31,3.44938642]
[1759759407181,113.2019,235.39,235.32,3.44938642]
[1759759407383,113.2019,235.39,235.33,3.44938642]
[1759759407583,109.38,235.39,235.33,7.28]
[1759759407786,109.38,235.39,235.35,7.28]
[1759759407982,109.38,235.39,235.3,11.1033]
[1759759408184,109.38,235.39,235.31,3.44491238]
[1759759408484,3.8221,235.38,235.32,3.44491238]
[1759759408689,109.38,235.39,235.3,7.28]
[1759759408885,109.38,235.39,235.31,3.44417288]
[1759759409092,109.38,235.39,235.32,3.44417288]
[1759759409381,109.38,235.39,235.33,3.44417288]
[1759759409587,109.38,235.39,235.3,11.1033]
[1759759409788,109.38,235.39,235.31,3.44266425]
[1759759409988,109.38,235.39,235.32,3.44266425]
[1759759410187,109.38,235.39,235.33,3.44266425]
[1759759410379,3.822,235.38,235.3,7.28]
[1759759410584,109.38,235.39,235.31,3.4420208]
[1759759410785,109.38,235.39,235.32,3.4420208]
[1759759411088,109.38,235.39,235.33,3.4420208]
[1759759411288,109.38,235.39,235.3,7.28]
[1759759411487,109.38,235.39,235.31,3.43921497]
[1759759411684,109.38,235.39,235.32,3.43921497]
[1759759411890,109.38,235.39,235.33,3.43921497]
[1759759412085,109.38,235.39,235.3,7.28]
[1759759412286,109.38,235.39,235.31,3.43827826]
[1759759412485,109.38,235.39,235.32,3.43827826]
[1759759412790,109.38,235.39,235.33,3.43827826]
[1759759412990,109.32,235.43,235.34,3.43827826]
[1759759413194,109.32,235.43,235.35,7.26077826]
[1759759413489,109.32,235.46,235.37,7.28]
[1759759413684,309.58,235.47,235.37,7.28]
[1759759413685,418.9,235.47,235.37,11.1021]
[1759759413989,418.9,235.47,235.38,3.43517266]
[1759759414188,12.81342966,235.58,235.39,3.43329724]
[1759759414189,59.413,235.55,235.39,3.43329724]
[1759759414391,59.4192,235.52,235.4,3.43329724]
[1759759414583,168.7141,235.54,235.41,3.43329724]
[1759759414783,109.3,235.54,235.42,3.43329724]
[1759759414985,109.3,235.54,235.37,7.28]
[1759759414986,59.4193,235.52,235.37,7.28]
[1759759415193,59.4193,235.52,235.38,3.49459285]
[1759759415194,59.4301,235.48,235.38,3.49459285]
[1759759415488,59.4242,235.5,235.32,4.72994785]
[1759759415489,59.4348,235.46,235.33,3.52985225]
[1759759415685,3.822,235.39,235.34,3.49463257]
[1759759415883,59.4384,235.45,235.35,3.49463257]
[1759759416089,59.4399,235.44,235.36,3.49463257]
[1759759416289,59.4399,235.44,235.37,3.49463257]
[1759759416488,168.732,235.47,235.32,3.52985225]
[1759759416685,109.3,235.47,235.34,7.28]
[1759759416886,59.4242,235.5,235.35,3.49491524]
[1759759416887,59.4246,235.5,235.35,3.49491524]
[1759759417082,109.28,235.46,235.36,3.49491524]
[1759759417386,109.28,235.46,235.37,3.49491524]
[1759759417587,3.8216,235.41,235.38,3.49491524]
[1759759417889,59.4523,235.39,235.32,3.52985225]
[1759759418093,59.4631,235.35,235.26,3.52985225]
[1759759418391,59.467,235.34,235.27,3.49721084]
[1759759418586,59.4671,235.33,235.28,3.49721084]
[1759759418788,59.4671,235.33,235.19,7.12018629]
[1759759418789,59.4453,235.42,235.29,3.49721084]
[1759759418996,59.4402,235.44,235.3,3.4987948]
[1759759419296,3.8219,235.39,235.31,3.49801998]
[1759759419488,3.8219,235.39,235.32,3.49801998]
[1759759419685,314.07795035,235.45,235.33,3.49801998]
[1759759419893,109.28,235.44,235.34,3.49801998]
[1759759420086,109.28,235.44,235.29,3.52985225]
[1759759420290,3.8223,235.37,235.3,3.49791945]
[1759759420487,109.28,235.36,235.31,3.49791945]
[1759759420687,314.07795035,235.45,235.32,3.49791945]
[1759759420892,3.8216,235.41,235.33,3.49791945]
[1759759421089,109.28,235.44,235.34,3.49791945]
[1759759421294,59.4444,235.42,235.35,3.49791945]
[1759759421490,59.4472,235.41,235.28,3.52985225]
[1759759421793,109.28,235.43,235.29,7.02988993]
[1759759421993,109.28,235.43,235.3,3.50003768]
[1759759422193,59.4474,235.41,235.31,3.50003768]
[1759759422393,59.4474,235.41,235.32,3.50003768]
[1759759422596,59.4395,235.44,235.33,3.50003768]
[1759759422787,109.28,235.43,235.34,3.50003768]
[1759759422991,109.28,235.43,235.35,3.50003768]
[1759759423296,109.28,235.43,235.36,3.50003768]
[1759759423497,109.28,235.43,235.37,3.50003768]
[1759759423694,113.1013,235.43,235.38,3.50003768]
[1759759423889,113.1013,235.43,235.39,3.50003768]
[1759759424094,109.28,235.43,235.4,3.50003768]
[1759759424288,109.28,235.43,235.41,3.50003768]
[1759759424494,109.28,235.43,235.42,3.50003768]
[1759759425095,309.36,235.45,235.42,3.50003768]
[1759759425289,109.28,235.43,235.4,10.80985225]
[1759759425592,109.28,235.43,235.41,3.49974236]
[1759759425790,109.28,235.43,235.42,3.49974236]
[1759759427099,109.28,235.43,235.42,6.99181344]
[1759759427394,109.28,235.43,235.42,6.99292079]
[1759759428396,109.26,235.43,235.42,6.99230553]
[1759759428794,109.26,235.43,235.42,3.49974236]
[1759759430395,109.26,235.43,235.42,4.236e-05]
[1759759430601,59.447,235.41,235.35,4.72994785]
[1759759430802,59.447,235.41,235.34,4.72994785]
[1759759431096,3.822,235.39,235.32,4.72994785]
[1759759431300,109.24,235.38,235.33,4.72994785]
[1759759431501,109.24,235.37,235.34,4.72994785]
[1759759431702,109.24,235.36,235.34,4.72994785]
[1759759432298,309.36,235.45,235.34,7.64]
[1759759432504,109.24,235.44,235.36,4.66321036]
[1759759432898,3.8216,235.41,235.36,4.66321036]
[1759759433099,309.36,235.45,235.36,4.66321036]
[1759759433297,3.8216,235.41,235.36,4.66321036]
[1759759433498,109.24,235.4,235.35,4.66321036]
[1759759434105,109.24,235.4,235.34,4.66321036]
[1759759434106,3.8222,235.37,235.34,4.66321036]
[1759759434302,3.8222,235.37,235.29,7.64]
[1759759434303,109.24,235.36,235.33,4.66321036]
[1759759434506,109.24,235.36,235.24,9.49358172]
[1759759434507,109.24,235.36,235.31,4.66321036]
[1759759435002,109.24,235.36,235.27,7.12018629]
[1759759435003,109.24,235.36,235.28,4.66321036]
[1759759435202,3.8227,235.35,235.28,4.66321036]
[1759759435403,109.24,235.36,235.28,4.66321036]
[1759759435595,109.24,235.36,235.27,4.66321036]
[1759759436303,3.8235,235.29,235.25,4.66321036]
[1759759436502,109.24,235.28,235.25,4.66321036]
[1759759436697,109.24,235.28,235.24,4.66321036]
[1759759436899,109.24,235.28,235.21,4.66321036]
[1759759436900,3.8238,235.27,235.21,4.66321036]
[1759759437102,3.8238,235.27,235.2,4.66321036]
[1759759437505,3.8242,235.25,235.19,4.66321036]
[1759759437796,109.24,235.24,235.19,4.66321036]
[1759759437997,109.24,235.23,235.19,12.30321036]
[1759759438401,109.24,235.23,235.2,7.64]
[1759759438604,109.24,235.27,235.21,4.66321036]
[1759759438805,109.24,235.27,235.2,4.66321036]
[1759759439005,109.24,235.27,235.18,4.66321036]
[1759759439202,109.24,235.27,235.17,4.66321036]
[1759759439410,109.24,235.26,235.18,4.66321036]
[1759759439610,109.24,235.26,235.19,4.66321036]
[1759759440409,109.24,235.28,235.22,7.64]
[1759759440600,109.24,235.34,235.25,7.64]
[1759759440802,109.24,235.33,235.25,7.64]
[1759759441003,109.24,235.33,235.25,12.30321036]
[1759759441203,118.9415,235.32,235.23,4.66321036]
[1759759441409,109.24,235.33,235.13,7.64]
[1759759441410,59.4747,235.3,235.2,4.66321036]
[1759759441608,59.4895,235.25,235.14,4.66321036]
[1759759441804,109.24,235.24,235.13,12.30321036]
[1759759442207,11.33616058,235.3,235.14,4.66321036]
[1759759442503,3.8233,235.3,235.16,7.64]
[1759759442708,38.06,235.29,235.17,3.46351738]
[1759759442912,38.06,235.29,235.18,3.46351738]
[1759759443110,38.06,235.29,235.19,3.46351738]
[1759759443304,38.06,235.29,235.2,3.46351738]
[1759759443500,41.8836,235.29,235.21,3.46351738]
[1759759443800,41.8836,235.29,235.22,3.46351738]
[1759759444002,109.26,235.29,235.23,3.46351738]
[1759759444200,109.26,235.29,235.24,11.10351738]
[1759759444511,109.26,235.31,235.25,11.10351738]
[1759759444701,109.26,235.31,235.26,3.46351738]
[1759759444906,109.26,235.31,235.27,3.46351738]
[1759759445103,109.26,235.31,235.28,3.46351738]
[1759759445306,109.26,235.31,235.29,3.46351738]
[1759759445511,109.26,235.31,235.3,3.46351738]
[1759759445810,7.51286058,235.42,235.3,3.46351738]
[1759759445811,67.0752,235.47,235.3,3.46351738]
[1759759446007,7.51286058,235.46,235.31,3.46351738]
[1759759446209,59.4474,235.41,235.32,3.46351738]
[1759759446404,59.4474,235.41,235.33,3.46351738]
[1759759446600,59.4496,235.4,235.34,3.46351738]
[1759759446809,3.8222,235.37,235.35,3.42227332]
[1759759447008,7.51286058,235.46,235.36,3.42227332]
[1759759447209,109.26,235.44,235.37,3.42227332]
[1759759447408,109.26,235.44,235.29,3.8234]
[1759759447605,368.7981,235.45,235.3,3.42150956]
[1759759447807,109.26,235.44,235.31,11.06150956]
[1759759448005,309.36,235.45,235.32,8.08471992]
[1759759448209,109.26,235.44,235.34,4.66321036]
[1759759448410,109.26,235.44,235.35,3.42150956]
[1759759448712,109.26,235.44,235.36,3.42150956]
[1759759448907,109.26,235.44,235.37,3.42150956]
[1759759449213,109.26,235.44,235.38,3.42150956]
[1759759449410,3.8212,235.43,235.39,3.42150956]
[1759759449611,3.8212,235.43,235.4,3.42150956]
[1759759449908,3.8212,235.43,235.41,3.42150956]
[1759759450110,3.8212,235.43,235.42,3.42150956]
[1759759450307,109.26,235.44,235.42,3.42150956]
[1759759450508,109.26,235.44,235.33,7.64]
[1759759450701,109.26,235.44,235.34,3.41853154]
[1759759450906,109.26,235.44,235.35,3.41853154]
[1759759451106,309.36,235.45,235.36,3.41853154]
[1759759451107,313.1809,235.45,235.36,3.41853154]
[1759759451306,109.24,235.44,235.37,3.41853154]
[1759759451512,109.24,235.44,235.38,3.41853154]
[1759759451707,109.24,235.44,235.39,3.41853154]
[1759759451911,109.24,235.44,235.4,3.41853154]
[1759759452109,109.24,235.44,235.41,3.41853154]
[1759759452309,109.24,235.44,235.42,3.41853154]
[1759759452504,109.24,235.44,235.43,3.41853154]
[1759759454404,109.24,235.44,235.43,11.05853154]
[1759759454607,100.0,235.5,235.43,11.05853154]
[1759759454810,109.22,235.49,235.44,3.41853154]
[1759759455114,109.22,235.49,235.45,3.41853154]
[1759759455415,109.22,235.49,235.46,3.41853154]
[1759759455615,109.22,235.49,235.47,3.41853154]
[1759759455818,109.22,235.49,235.43,7.64]
[1759759456114,109.22,235.49,235.44,3.41011811]
[1759759456310,109.22,235.49,235.45,3.41011811]
[1759759456517,109.22,235.49,235.46,3.41011811]
[1759759456711,109.22,235.49,235.47,3.41011811]
[1759759456910,109.22,235.49,235.43,7.64]
[1759759457114,3.8204,235.48,235.44,3.40853276]
[1759759457314,3.8204,235.48,235.45,3.40853276]
[1759759457519,3.8204,235.48,235.37,7.64]
[1759759457817,3.8204,235.48,235.38,3.40839661]
[1759759458017,3.8204,235.48,235.39,3.40839661]
[1759759458216,109.22,235.49,235.4,3.40839661]
[1759759458412,109.2,235.48,235.41,3.40839661]
[1759759458614,109.2,235.48,235.42,3.40839661]
[1759759458918,109.2,235.48,235.44,7.23]
[1759759459124,109.2,235.48,235.45,3.40839661]
[1759759459416,100.0,235.5,235.46,10.63839661]
[1759759459617,100.0,235.5,235.47,3.40839661]
[1759759459816,100.0,235.5,235.46,7.23]
[1759759460019,100.0,235.5,235.47,3.40606056]
[1759759460225,100.0,235.5,235.48,3.40606056]
[1759759460422,100.0,235.5,235.49,10.63606056]
[1759759461329,93.20819472,235.5,235.49,11.05606056]
[1759759462728,93.20819472,235.5,235.49,10.63606056]
[1759759463428,93.20819472,235.5,235.49,11.05606056]
[1759759464625,93.20819472,235.5,235.49,3.40606056]
[1759759464829,93.20819472,235.5,235.4,11.89321036]
[1759759465031,93.20819472,235.5,235.41,3.39686413]
[1759759465221,93.20819472,235.5,235.42,3.39686413]
[1759759465425,93.20819472,235.5,235.43,3.39686413]
[1759759465625,93.20819472,235.5,235.44,3.39686413]
[1759759465825,93.20819472,235.5,235.45,3.39686413]
[1759759466025,93.20819472,235.5,235.46,3.39686413]
[1759759466227,93.20819472,235.5,235.47,3.39686413]
[1759759466425,93.20819472,235.5,235.48,3.39686413]
[1759759466623,93.20819472,235.5,235.49,3.39557168]
[1759759467833,93.20819472,235.5,235.43,3.8212]
[1759759468135,93.20819472,235.5,235.44,3.39510744]
[1759759468335,93.20819472,235.5,235.45,3.39510744]
[1759759468633,93.20819472,235.5,235.46,3.39510744]
[1759759468833,93.20819472,235.5,235.47,3.39510744]
[1759759469034,93.20819472,235.5,235.43,3.8212]
[1759759469232,93.20819472,235.5,235.44,3.39479968]
[1759759469433,93.20819472,235.5,235.37,59.456]
[1759759469434,93.20819472,235.5,235.45,3.39479968]
[1759759469630,93.20819472,235.5,235.36,11.89321036]
[1759759469837,93.20819472,235.5,235.37,3.39563829]
[1759759470034,3.8203,235.49,235.38,3.39563829]
[1759759470225,3.8203,235.49,235.39,3.39563829]
[1759759470429,3.8203,235.49,235.36,11.89321036]
[1759759470430,3.8203,235.49,235.4,3.39563829]
[1759759470630,3.8203,235.49,235.41,3.39563829]
[1759759470837,3.8203,235.49,235.42,3.39563829]
[1759759471029,3.8203,235.49,235.43,3.39563829]
[1759759471230,3.8206,235.47,235.33,4.66321036]
[1759759471433,109.14,235.46,235.34,3.3961529]
[1759759471635,93.94759767,235.5,235.35,3.3961529]
[1759759471636,109.14,235.45,235.35,3.3961529]
[1759759471837,109.14,235.44,235.37,7.23]
[1759759472036,109.14,235.45,235.38,62.8500529]
[1759759472232,109.14,235.46,235.39,3.3961529]
[1759759472532,109.14,235.46,235.4,3.3961529]
[1759759472833,109.14,235.46,235.41,3.3961529]
[1759759473134,109.14,235.46,235.42,3.3961529]
[1759759473326,109.14,235.46,235.33,11.89321036]
[1759759473532,109.14,235.46,235.34,3.39625675]
[1759759473829,112.9607,235.46,235.35,7.21875675]
[1759759474034,109.14,235.46,235.36,3.39625675]
[1759759474233,109.14,235.46,235.37,3.39625675]
[1759759474431,109.14,235.46,235.28,4.66321036]
[1759759474626,3.821,235.45,235.32,3.823]
[1759759474838,109.14,235.46,235.33,3.37786005]
[1759759475033,109.14,235.45,235.34,3.37786005]
[1759759475233,109.14,235.44,235.35,3.37786005]
[1759759475436,109.14,235.44,235.36,3.37786005]
[1759759475637,109.14,235.44,235.37,3.37786005]
[1759759475836,109.14,235.44,235.3,7.23]
[1759759476036,109.14,235.44,235.31,3.37766203]
[1759759476238,109.14,235.44,235.32,3.37766203]
[1759759476439,3.8212,235.43,235.33,3.37766203]
[1759759476740,109.14,235.44,235.34,3.37766203]
[1759759476941,3.8209,235.45,235.35,3.37766203]
[1759759477130,109.14,235.44,235.36,3.37766203]
[1759759477330,109.14,235.44,235.37,3.37766203]
[1759759477538,3.8213,235.43,235.31,3.8231]
[1759759477740,3.8213,235.43,235.32,3.3776632]
[1759759477936,109.14,235.44,235.33,3.3776632]
[1759759478132,3.8216,235.41,235.34,3.3776632]
[1759759478335,59.4446,235.42,235.25,12.34321036]
[1759759478637,59.4446,235.42,235.26,3.37892587]
[1759759478842,59.4495,235.4,235.27,3.37892587]
[1759759479142,59.4495,235.4,235.28,3.37892587]
[1759759479439,109.14,235.39,235.29,11.05892587]
[1759759479641,109.14,235.38,235.3,3.37892587]
[1759759479941,109.14,235.37,235.31,3.37892587]
[1759759480141,109.14,235.36,235.32,3.37892587]
[1759759480341,109.14,235.36,235.33,3.37892587]
[1759759480543,109.14,235.36,235.34,3.3785496]
[1759759480840,109.14,235.36,235.35,3.3782086]
[1759759481832,59.4298,235.48,235.29,7.68]
[1759759482042,59.4379,235.45,235.3,3.37879276]
[1759759482234,59.4379,235.45,235.31,3.37879276]
[1759759482439,59.4379,235.45,235.32,3.37879276]
[1759759482734,59.4379,235.45,235.33,3.37879276]
[1759759482938,59.4379,235.45,235.34,3.37879276]
[1759759483140,59.436,235.46,235.35,3.37879276]
[1759759483443,109.14,235.45,235.36,3.37879276]
[1759759483737,109.14,235.45,235.37,3.37879276]
[1759759483943,109.14,235.45,235.33,7.68]
[1759759484135,3.8214,235.42,235.34,3.37921249]
[1759759484340,59.4311,235.48,235.33,7.68]
[1759759484341,109.14,235.44,235.35,3.37921249]
[1759759484644,109.14,235.44,235.36,3.37921249]
[1759759484837,112.9611,235.44,235.37,3.37921249]
[1759759485039,112.9611,235.44,235.38,3.37921249]
[1759759485236,109.14,235.43,235.39,3.37921249]
[1759759485438,109.14,235.43,235.33,7.68]
[1759759485439,109.14,235.43,235.4,3.37921249]
[1759759485632,109.14,235.43,235.33,7.68]
[1759759485846,109.14,235.43,235.34,3.38026042]
[1759759486036,109.14,235.43,235.35,3.38026042]
[1759759486237,109.14,235.43,235.36,11.06026042]
[1759759486439,109.14,235.43,235.37,3.38026042]
[1759759486637,1.06196882,235.42,235.38,3.38026042]
[1759759486844,1.06196882,235.41,235.39,3.38026042]
[1759759487149,1.06196882,235.4,235.32,3.8229]
[1759759487342,1.06196882,235.39,235.33,3.38330872]
[1759759487641,109.14,235.43,235.34,3.38330872]
[1759759487846,3.8216,235.41,235.35,3.38330872]
[1759759488049,109.14,235.43,235.36,3.38330872]
[1759759488341,109.14,235.43,235.31,7.68]
[1759759488342,109.14,235.43,235.37,3.38330872]
[1759759488542,109.14,235.43,235.38,3.38330872]
[1759759488743,109.14,235.43,235.32,7.45]
[1759759488744,1.06199065,235.42,235.39,3.38330872]
[1759759488941,59.4496,235.4,235.3,4.66321036]
[1759759489144,59.4571,235.37,235.27,4.66321036]
[1759759489445,3.8233,235.31,235.26,4.66321036]
[1759759489647,1.06199065,235.3,235.26,4.66321036]
[1759759489852,1.06199065,235.29,235.24,4.66321036]
[1759759490147,1.06199065,235.28,235.18,4.66321036]
[1759759490342,1.06199065,235.27,235.19,4.66321036]
[1759759490647,4.88599065,235.26,235.21,3.51208467]
[1759759490943,1.06199065,235.25,235.2,3.51208467]
[1759759491148,1.06282452,235.24,235.2,3.51208467]
[1759759491350,59.4782,235.29,235.19,3.51208467]
[1759759491351,1.06282452,235.23,235.19,3.51208467]
[1759759491542,1.06282452,235.22,235.19,3.51208467]
[1759759491748,1.06282452,235.21,235.19,3.51208467]
[1759759491945,1.06282452,235.2,235.18,3.51208467]
[1759759492149,1.06282452,235.19,235.18,3.51208467]
[1759759492344,3.8245,235.23,235.18,4.02380503]
[1759759492540,3.8245,235.23,235.19,4.02380503]
[1759759492745,3.8245,235.23,235.2,4.02380503]
[1759759492944,109.12,235.24,235.21,4.02380503]
[1759759493145,109.12,235.24,235.22,4.02380503]
[1759759493347,109.12,235.24,235.23,4.02380503]
[1759759493942,3.8242,235.25,235.23,4.02380503]
[1759759493943,59.4731,235.31,235.23,4.02380503]
[1759759494150,59.4779,235.29,235.24,4.02380503]
[1759759494355,3.8237,235.28,235.25,4.02380503]
[1759759494554,3.8237,235.28,235.26,5.03e-06]
[1759759494757,3.8243,235.25,235.16,3.51208467]
[1759759494959,104.88838537,235.24,235.16,10.96208467]
[1759759495255,104.88838537,235.24,235.16,7.45]
[1759759495454,104.88838537,235.24,235.15,3.51208467]
[1759759495455,3.8245,235.23,235.15,3.51208467]
[1759759495655,3.8245,235.23,235.14,3.51208467]
[1759759495855,3.8245,235.23,235.13,3.51208467]
[1759759496358,104.88838537,235.24,235.13,3.51208467]
[1759759496359,3.8248,235.21,235.13,3.51208467]
[1759759496545,3.8248,235.21,235.12,3.51208467]
[1759759496855,3.8237,235.28,235.13,7.45]
[1759759497045,59.4575,235.37,235.18,10.96208467]
[1759759497046,33.2,235.27,235.18,10.96208467]
[1759759497248,76.64549137,235.39,235.2,3.51208467]
[1759759497551,4.72341213,235.39,235.22,7.45]
[1759759497849,87.08,235.38,235.26,7.45]
[1759759498447,3.8224,235.36,235.26,7.45]
[1759759498645,59.457,235.37,235.26,7.45]
[1759759499051,3.8227,235.34,235.26,7.45]
[1759759499756,87.08,235.38,235.26,7.45]
[1759759499957,109.14,235.37,235.26,7.45]
[1759759500754,64.16161213,235.45,235.26,7.45]
[1759759500949,98.1,235.44,235.28,3.51208467]
[1759759501153,59.4444,235.42,235.29,3.36528242]
[1759759501352,3.8219,235.39,235.3,3.36528242]
[1759759501657,59.4382,235.45,235.31,3.36528242]
[1759759501958,109.14,235.44,235.32,3.36528242]
[1759759502149,3.8215,235.42,235.33,3.36528242]
[1759759502354,3.8215,235.42,235.34,3.36528242]
[1759759502549,109.14,235.41,235.35,3.36543269]
[1759759502751,3.8209,235.45,235.3,7.45]
[1759759502956,95.5,235.44,235.31,7.18863872]
[1759759503150,95.5,235.44,235.3,10.96208467]
[1759759503151,3.8216,235.41,235.32,3.36543872]
[1759759503359,3.8216,235.41,235.33,3.36543872]
[1759759503559,3.8216,235.41,235.34,3.36543872]
[1759759503758,3.8216,235.41,235.3,7.45]
[1759759503950,3.8219,235.39,235.31,3.36599202]
[1759759504157,59.452,235.39,235.25,3.51208467]
[1759759504359,59.452,235.39,235.26,3.36736326]
[1759759504561,59.4574,235.37,235.27,3.36736326]
[1759759504858,109.12,235.36,235.28,3.36736326]
[1759759505059,59.4632,235.35,235.21,3.51208467]
[1759759505260,3.8233,235.31,235.22,3.36904744]
[1759759505454,109.12,235.36,235.23,3.36904744]
[1759759505660,109.12,235.36,235.24,3.36904744]
[1759759505853,59.4595,235.36,235.25,3.36904744]
[1759759506055,59.4595,235.36,235.2,3.51208467]
[1759759506357,59.4654,235.34,235.21,3.36950493]
[1759759506557,59.4654,235.34,235.22,7.2637635]
[1759759506558,59.4723,235.31,235.22,7.2637635]
[1759759506857,59.4723,235.31,235.23,3.89425857]
[1759759507061,59.4723,235.31,235.16,3.51208467]
[1759759507062,3.8241,235.26,235.24,3.89425857]
[1759759507352,106.99445665,235.25,235.16,3.51208467]
[1759759507555,3.8239,235.27,235.17,7.52244146]
[1759759507755,59.4572,235.37,235.19,7.45]
[1759759507959,89.3,235.36,235.21,7.45]
[1759759508160,3.8224,235.36,235.22,7.52244146]
[1759759508358,73.1,235.35,235.23,14.97244146]
[1759759508561,3.8237,235.28,235.24,7.52244146]
[1759759508761,109.12,235.27,235.25,4.14857135]
[1759759508964,109.12,235.27,235.26,4.14857135]
[1759759509265,109.12,235.27,235.26,3.83247875]
[1759759510054,109.54,235.27,235.26,7.875e-05]
[1759759511161,109.54,235.27,235.07,7.12018629]
[1759759511162,59.5032,235.19,235.1,3.51208467]
[1759759511361,109.12,235.18,235.11,3.38135188]